fUSD/lending_fUSD_20240212
["ID","MTS","AMOUNT","RATE_DAILY","PERIOD"]
[313832707,1707748266509,-500.0,0.0002367,2]
[313832708,1707748266519,-250.0,0.0002367,2]
[313832709,1707748266528,-500.0,0.0002367,2]
[313832710,1707748266538,-500.0,0.0002367,2]
[313832711,1707748266548,-589.88994557,0.0002367,2]
[313832712,1707748266558,-500.0,0.0002367,2]
[313832713,1707748266568,-500.0,0.0002367,2]
[313832714,1707748266578,-859.17,0.0002367,2]
[313832715,1707748266589,-8642.09,0.0002367,2]
[313832716,1707748266598,-500.0,0.0002367,2]
[313832717,1707748266608,-500.0,0.0002367,2]
[313832718,1707748266618,-500.0,0.0002367,2]
[313832719,1707748266627,-500.0,0.0002367,2]
[313832720,1707748266638,-500.0,0.0002367,2]
[313832721,1707748266648,-907.74,0.0002367,2]
[313832722,1707748266658,-659.8,0.0002367,2]
[313832723,1707748266668,-500.0,0.0002367,2]
[313832724,1707748266678,-6204.93,0.0002367,2]
[313832725,1707748266688,-500.0,0.0002367,2]
[313832726,1707748266697,-500.0,0.0002367,2]
[313832727,1707748266706,-500.0,0.0002367,2]
[313832728,1707748266716,-1134.83,0.0002367,2]
[313832729,1707748266726,-500.0,0.0002367,2]
[313832730,1707748266734,-1147.71,0.0002367,2]
[313832731,1707748266743,-500.0,0.0002367,2]
[313832732,1707748266753,-500.0,0.0002367,2]
[313832733,1707748266763,-500.0,0.0002367,2]
[313832734,1707748266772,-500.0,0.0002367,2]
[313832735,1707748266781,-2142.38,0.0002367,2]
[313832736,1707748266790,-1578.9,0.0002367,2]
[313832737,1707748266800,-500.0,0.0002367,2]
[313832738,1707748266809,-500.0,0.0002367,2]
[313832739,1707748266819,-500.0,0.0002367,2]
[313832740,1707748266829,-500.0,0.0002367,2]
[313832741,1707748266838,-628.61,0.0002367,2]
[313832742,1707748266847,-1527.65,0.0002367,2]
[313832743,1707748266857,-191.57138411,0.0002367,2]
[313832744,1707748266866,-500.0,0.0002367,2]
[313832745,1707748266875,-1715.49,0.0002367,2]
[313832746,1707748266885,-500.0,0.0002367,2]
[313832747,1707748266895,-1537.51,0.0002367,2]
[313832748,1707748266905,-500.0,0.0002367,2]
[313832749,1707748266914,-500.0,0.0002367,2]
[313832750,1707748266923,-1757.6,0.0002367,2]
[313832751,1707748266933,-500.0,0.0002367,2]
[313832752,1707748266943,-280.30290933,0.0002367,2]
[313832753,1707748266952,-2089.11,0.0002367,2]
[313832754,1707748266961,-1017.68,0.0002367,2]
[313832755,1707748266970,-590.70029779,0.0002367,2]
[313832756,1707748266979,-500.0,0.0002367,2]
[313832757,1707748266988,-1161.37,0.0002367,2]
[313832758,1707748266998,-500.0,0.0002367,2]
[313832759,1707748267007,-590.03,0.0002367,2]
[313832760,1707748267016,-500.0,0.0002367,2]
[313832761,1707748267025,-10286.15,0.0002367,2]
[313832762,1707748267034,-311.86888116,0.0002367,2]
[313832763,1707748267044,-500.0,0.0002367,2]
[313832764,1707748267054,-500.0,0.0002367,2]
[313832765,1707748267063,-500.0,0.0002367,2]
[313832766,1707748267072,-500.0,0.0002367,2]
[313832767,1707748267082,-500.0,0.0002367,2]
[313832768,1707748267091,-1897.21,0.0002367,2]
[313832769,1707748267101,-500.0,0.0002367,2]
[313832770,1707748267110,-935.54,0.0002367,2]
[313832771,1707748267120,-500.0,0.0002367,2]
[313832772,1707748267130,-7934.79,0.0002367,2]
[313832773,1707748267139,-500.0,0.0002367,2]
[313832774,1707748267150,-500.0,0.0002367,2]
[313832775,1707748267159,-500.0,0.0002367,2]
[313832776,1707748267169,-500.0,0.0002367,2]
[313832777,1707748267179,-500.0,0.0002367,2]
[313832778,1707748267189,-500.0,0.0002367,2]
[313832779,1707748267199,-500.0,0.0002367,2]
[313832780,1707748267209,-2190.55,0.0002367,2]
[313832781,1707748267218,-325.93911171,0.0002367,2]
[313832782,1707748267228,-500.0,0.0002367,2]
[313832783,1707748267237,-1376.25,0.0002367,2]
[313832784,1707748267247,-500.0,0.0002367,2]
[313832785,1707748267260,-6405.5,0.0002367,2]
[313832786,1707748267269,-500.0,0.0002367,2]
[313832787,1707748267280,-500.0,0.0002367,2]
[313832788,1707748267290,-500.0,0.0002367,2]
[313832789,1707748267301,-4161.56,0.0002367,2]
[313832790,1707748267312,-692.19,0.0002367,2]
[313832791,1707748267322,-500.0,0.0002367,2]
[313832792,1707748267331,-562.21,0.0002367,2]
[313832793,1707748267341,-500.0,0.0002367,2]
[313832794,1707748267351,-1117.06506161,0.00023674,2]
[313832795,1707748267361,-15026.1237614,0.00023703,2]
[313832796,1707748267371,-90905.2191999,0.00023703,2]
[313832797,1707748267382,-3273.8699026,0.00023703,2]
[313832798,1707748267392,-90905.2191999,0.00023703,2]
[313832799,1707748267402,-3387.1569143,0.00023719,2]
[313832800,1707748267411,-90541.6275,0.00023719,2]
[313832801,1707748267421,-2343.5681769,0.00023719,2]
[313832802,1707748267430,-7958.8120861,0.00023735,2]
[313832803,1707748267439,-500.0,0.00023751,2]
[313832804,1707748267449,-500.0,0.00023751,2]
[313832805,1707748267459,-500.0,0.00023751,2]
[313832806,1707748267469,-500.0,0.00023751,2]
[313832807,1707748267478,-500.0,0.00023751,2]
[313832808,1707748267487,-500.0,0.00023751,2]
[313832809,1707748267496,-500.0,0.00023751,2]
[313832810,1707748267508,-500.0,0.00023751,2]
[313832811,1707748267518,-500.0,0.00023751,2]
[313832812,1707748267527,-420.68273427,0.00023751,2]
[313832813,1707748267537,-500.0,0.00023751,2]
[313832814,1707748267546,-1262.54,0.00023751,2]
[313832815,1707748267555,-500.0,0.00023751,2]
[313832816,1707748267565,-1207.47,0.00023751,2]
[313832817,1707748267574,-500.0,0.00023751,2]
[313832818,1707748267584,-500.0,0.00023751,2]
[313832819,1707748267594,-500.0,0.00023751,2]
[313832820,1707748267603,-500.0,0.00023751,2]
[313832821,1707748267613,-500.0,0.00023751,2]
[313832822,1707748267623,-454.57512358,0.00023751,2]
[313832823,1707748267632,-581.28,0.00023751,2]
[313832824,1707748267642,-500.0,0.00023751,2]
[313832825,1707748267651,-500.0,0.00023751,2]
[313832826,1707748267661,-500.0,0.00023751,2]
[313832827,1707748267671,-500.0,0.00023751,2]
[313832828,1707748267679,-500.0,0.00023751,2]
[313832829,1707748267689,-500.0,0.00023751,2]
[313832830,1707748267698,-500.0,0.00023751,2]
[313832831,1707748267707,-500.0,0.00023751,2]
[313832832,1707748267716,-500.0,0.00023751,2]
[313832833,1707748267724,-500.0,0.00023751,2]
[313832834,1707748267734,-500.0,0.00023751,2]
[313832835,1707748267743,-500.0,0.00023751,2]
[313832836,1707748267754,-500.0,0.00023751,2]
[313832837,1707748267764,-500.0,0.00023751,2]
[313832838,1707748267774,-500.0,0.00023751,2]
[313832839,1707748267784,-500.0,0.00023751,2]
[313832840,1707748267793,-662.95,0.00023751,2]
[313832841,1707748267802,-500.0,0.00023751,2]
[313832842,1707748267811,-500.0,0.00023751,2]
[313832843,1707748267820,-500.0,0.00023751,2]
[313832844,1707748267829,-500.0,0.00023751,2]
[313832845,1707748267839,-500.0,0.00023751,2]
[313832846,1707748267849,-500.0,0.00023751,2]
[313832847,1707748267858,-500.0,0.00023751,2]
[313832848,1707748267867,-500.0,0.00023751,2]
[313832849,1707748267876,-500.0,0.00023751,2]
[313832850,1707748267886,-500.0,0.00023751,2]
[313832851,1707748267895,-500.0,0.00023751,2]
[313832852,1707748267904,-500.0,0.00023751,2]
[313832853,1707748267914,-785.31,0.00023751,2]
[313832854,1707748267923,-500.0,0.00023751,2]
[313832855,1707748267934,-500.0,0.00023751,2]
[313832856,1707748267943,-500.0,0.00023751,2]
[313832857,1707748267952,-1057.6,0.00023751,2]
[313832858,1707748267962,-500.0,0.00023751,2]
[313832859,1707748267972,-500.0,0.00023751,2]
[313832860,1707748267982,-623.82,0.00023751,2]
[313832861,1707748267991,-500.0,0.00023751,2]
[313832862,1707748268001,-500.0,0.00023751,2]
[313832863,1707748268011,-500.0,0.00023751,2]
[313832864,1707748268019,-500.0,0.00023751,2]
[313832865,1707748268029,-396.00960389,0.00023751,2]
[313832866,1707748268039,-681.61,0.00023751,2]
[313832867,1707748268047,-500.0,0.00023751,2]
[313832868,1707748268056,-500.0,0.00023751,2]
[313832869,1707748268065,-500.0,0.00023751,2]
[313832870,1707748268075,-1004.0,0.00023751,2]
[313832871,1707748268084,-500.0,0.00023751,2]
[313832872,1707748268093,-500.0,0.00023751,2]
[313832873,1707748268103,-500.0,0.00023751,2]
[313832874,1707748268112,-500.0,0.00023751,2]
[313832875,1707748268121,-500.0,0.00023751,2]
[313832876,1707748268130,-500.0,0.00023751,2]
[313832877,1707748268140,-500.0,0.00023751,2]
[313832878,1707748268149,-500.0,0.00023757,2]
[313832879,1707748268159,-500.0,0.00023758,2]
[313832880,1707748268168,-500.0,0.00023758,2]
[313832881,1707748268177,-500.0,0.00023758,2]
[313832882,1707748268186,-500.0,0.00023758,2]
[313832883,1707748268195,-500.0,0.00023758,2]
[313832884,1707748268204,-500.0,0.00023758,2]
[313832885,1707748268213,-500.0,0.00023758,2]
[313832886,1707748268222,-500.0,0.00023773,2]
[313832887,1707748268231,-5812.6876084,0.00023835,2]
[313832888,1707748268240,-500.0,0.00023842,2]
[313832889,1707748268250,-500.0,0.00023842,2]
[313832890,1707748268259,-500.0,0.00023842,2]
[313832891,1707748268270,-500.0,0.00023842,2]
[313832892,1707748268279,-493.93719046,0.00023842,2]
[313832893,1707748268289,-1366.1,0.00023842,2]
[313832894,1707748268299,-500.0,0.00023842,2]
[313832895,1707748268311,-500.0,0.00023842,2]
[313832896,1707748268320,-1117.06506161,0.00023843,2]
[313832897,1707748268329,-568.33663327,0.00023843,8]
[313832898,1707748268339,-2110.37,0.00023858,2]
[313832899,1707748268349,-500.0,0.00023858,2]
[313832900,1707748268358,-6142.49,0.00023858,2]
[313832901,1707748268368,-500.0,0.00023858,2]
[313832902,1707748268378,-676.37,0.00023858,2]
[313832903,1707748268387,-1791.31,0.00023858,2]
[313832904,1707748268397,-564.38,0.00023858,2]
[313832905,1707748268407,-500.0,0.00023858,2]
[313832906,1707748268416,-2125.32,0.00023858,2]
[313832907,1707748268425,-500.0,0.00023858,2]
[313832908,1707748268435,-746.12,0.00023858,2]
[313832909,1707748268445,-500.0,0.00023858,2]
[313832910,1707748268455,-6506.4,0.00023858,2]
[313832911,1707748268464,-746.22,0.00023858,2]
[313832912,1707748268474,-500.0,0.00023858,2]
[313832913,1707748268483,-500.0,0.00023858,2]
[313832914,1707748268493,-500.0,0.00023858,2]
[313832915,1707748268502,-500.0,0.00023858,2]
[313832916,1707748268512,-1926.94,0.00023858,2]
[313832917,1707748268522,-500.0,0.00023858,2]
[313832918,1707748268531,-1829.63,0.00023858,2]
[313832919,1707748268541,-500.0,0.00023858,2]
[313832920,1707748268550,-504.23,0.00023858,2]
[313832921,1707748268560,-2230.81,0.00023858,2]
[313832922,1707748268569,-500.0,0.00023858,2]
[313832923,1707748268579,-500.0,0.00023858,2]
[313832924,1707748268589,-5597.11,0.00023858,2]
[313832925,1707748268599,-2899.6,0.00023858,2]
[313832926,1707748268609,-500.0,0.00023858,2]
[313832927,1707748268619,-828.89,0.00023858,2]
[313832928,1707748268628,-500.0,0.00023879,2]
[313832929,1707748268638,-150.0,0.00023905,2]
[313832930,1707748268648,-202.0,0.00023905,2]
[313832931,1707748268658,-500.0,0.0002394,2]
[313832932,1707748268668,-500.0,0.0002394,2]
[313832933,1707748268677,-2611.65,0.0002394,2]
[313832934,1707748268686,-1871.51,0.0002394,2]
[313832935,1707748268696,-15228.44,0.0002394,2]
[313832936,1707748268705,-1123.04,0.0002394,2]
[313832937,1707748268714,-500.0,0.0002394,2]
[313832938,1707748268724,-669.38,0.0002394,2]
[313832939,1707748268733,-528.81284307,0.0002394,2]
[313832940,1707748268743,-500.0,0.0002394,2]
[313832941,1707748268753,-7454.03,0.0002394,2]
[313832942,1707748268763,-656.99,0.0002394,2]
[313832943,1707748268772,-1132.61,0.0002394,2]
[313832944,1707748268782,-500.0,0.0002394,2]
[313832945,1707748268791,-607.87,0.0002394,2]
[313832946,1707748268801,-2975.67,0.0002394,2]
[313832947,1707748268811,-1380.57,0.0002394,2]
[313832948,1707748268820,-1785.04,0.0002394,2]
[313832949,1707748268830,-500.0,0.0002394,2]
[313832950,1707748268839,-1602.71,0.0002394,2]
[313832951,1707748268849,-1140.13,0.0002394,2]
[313832952,1707748268858,-2106.31,0.0002394,2]
[313832953,1707748268868,-1276.82,0.0002394,2]
[313832954,1707748268877,-11488.97,0.0002394,2]
[313832955,1707748268887,-779.37,0.0002394,2]
[313832956,1707748268897,-522.1,0.0002394,2]
[313832957,1707748268906,-500.0,0.0002394,2]
[313832958,1707748268915,-862.25,0.0002394,2]
[313832959,1707748268924,-954.69,0.0002394,2]
[313832960,1707748268933,-4038.41,0.0002394,2]
[313832961,1707748268943,-2125.47,0.0002394,2]
[313832962,1707748268952,-3098.18,0.0002394,2]
[313832963,1707748268962,-4848.26,0.0002394,2]
[313832964,1707748268971,-1169.49,0.0002394,2]
[313832965,1707748268980,-2525.28,0.0002394,2]
[313832966,1707748268990,-150.0,0.00023942,2]
[313832967,1707748268999,-150.0,0.00023942,2]
[313832968,1707748269009,-549.72845576,0.00023943,2]
[313832969,1707748269019,-500.0,0.00023943,2]
[313832970,1707748269028,-500.0,0.00023943,2]
[313832971,1707748269038,-500.0,0.00023943,2]
[313832972,1707748269047,-500.0,0.00023943,2]
[313832973,1707748269056,-500.0,0.00023943,2]
[313832974,1707748269066,-500.0,0.00023943,2]
[313832975,1707748269075,-500.0,0.00023943,2]
[313832976,1707748269085,-500.0,0.00023943,2]
[313832977,1707748269095,-500.0,0.00023943,2]
[313832978,1707748269104,-660.1,0.00023943,2]
[313832979,1707748269113,-676.33,0.00023943,2]
[313832980,1707748269123,-500.0,0.00023943,2]
[313832981,1707748269133,-500.0,0.00023943,2]
[313832982,1707748269142,-500.0,0.00023943,2]
[313832983,1707748269151,-500.0,0.00023943,2]
[313832984,1707748269161,-500.0,0.00023943,2]
[313832985,1707748269171,-500.0,0.00023943,2]
[313832986,1707748269180,-500.0,0.00023943,2]
[313832987,1707748269189,-500.0,0.00023943,7]
[313832988,1707748269199,-500.0,0.00023943,2]
[313832989,1707748269209,-500.0,0.00023943,2]
[313832990,1707748269218,-500.0,0.00023943,2]
[313832991,1707748269227,-526.84,0.00023943,2]
[313832992,1707748269237,-500.0,0.00023943,2]
[313832993,1707748269246,-500.0,0.00023943,2]
[313832994,1707748269255,-500.0,0.00023943,2]
[313832995,1707748269264,-500.0,0.00023943,2]
[313832996,1707748269274,-529.5,0.00023943,2]
[313832997,1707748269283,-500.0,0.00023943,2]
[313832998,1707748269294,-501.05,0.00023943,2]
[313832999,1707748269305,-652.95,0.00023943,2]
[313833000,1707748269314,-651.67,0.00023943,2]
[313833001,1707748269323,-567.71,0.00023943,2]
[313833002,1707748269333,-500.0,0.00023943,2]
[313833003,1707748269342,-784.11,0.00023943,2]
[313833004,1707748269353,-524.91,0.00023943,2]
[313833005,1707748269363,-500.0,0.00023943,2]
[313833006,1707748269372,-500.0,0.00023943,2]
[313833007,1707748269383,-500.0,0.00023943,2]
[313833008,1707748269393,-872.77,0.00023943,2]
[313833009,1707748269402,-639.25,0.00023943,2]
[313833010,1707748269412,-500.0,0.00023943,2]
[313833011,1707748269422,-500.0,0.00023943,2]
[313833012,1707748269431,-500.0,0.00023943,2]
[313833013,1707748269440,-500.0,0.00023943,2]
[313833014,1707748269450,-500.0,0.00023943,2]
[313833015,1707748269460,-150.0,0.00023943,2]
[313833016,1707748269470,-500.0,0.00023943,2]
[313833017,1707748269479,-542.16643502,0.00023943,2]
[313833018,1707748269489,-500.0,0.00023943,2]
[313833019,1707748269498,-500.0,0.00023943,2]
[313833020,1707748269679,-500.0,0.00023943,2]
[313833021,1707748269693,-1296.69,0.00023943,2]
[313833022,1707748269703,-500.0,0.00023943,2]
[313833023,1707748269713,-500.0,0.00023943,2]
[313833024,1707748269722,-510.08777622,0.00023943,2]
[313833025,1707748269732,-500.0,0.00023943,2]
[313833026,1707748269742,-500.0,0.00023943,2]
[313833027,1707748269752,-630.29621839,0.00023943,2]
[313833028,1707748269762,-500.0,0.00023943,2]
[313833029,1707748269771,-500.0,0.00023943,2]
[313833030,1707748269780,-500.0,0.00023943,2]
[313833031,1707748269790,-517.62,0.00023943,2]
[313833032,1707748269799,-4333.7,0.00023943,2]
[313833033,1707748269808,-1895.9,0.00023943,2]
[313833034,1707748269817,-923.15,0.00023943,2]
[313833035,1707748269826,-1121.1,0.00023943,2]
[313833036,1707748269836,-500.0,0.00023943,2]
[313833037,1707748269845,-500.0,0.00023943,2]
[313833038,1707748269854,-500.0,0.00023943,2]
[313833039,1707748269863,-500.0,0.00023943,2]
[313833040,1707748269873,-4100.88,0.00023943,2]
[313833041,1707748269882,-791.85,0.00023943,2]
[313833042,1707748269891,-500.0,0.00023943,2]
[313833043,1707748269901,-1394.8,0.00023943,2]
[313833044,1707748269912,-575.24,0.00023943,2]
[313833045,1707748269922,-500.0,0.00023943,2]
[313833046,1707748269931,-715.53,0.00023943,2]
[313833047,1707748269940,-1763.67,0.00023943,2]
[313833048,1707748269950,-637.77,0.00023943,2]
[313833049,1707748269959,-2032.84,0.00023943,2]
[313833050,1707748269969,-500.0,0.00023943,2]
[313833051,1707748269979,-686.28,0.00023943,2]
[313833052,1707748269988,-689.11,0.00023943,2]
[313833053,1707748269998,-4391.98,0.00023943,2]
[313833054,1707748270009,-1500.18,0.00023943,2]
[313833055,1707748270019,-637.5,0.00023943,2]
[313833056,1707748270028,-500.0,0.00023943,2]
[313833057,1707748270038,-1040.77,0.00023943,2]
[313833058,1707748270048,-500.0,0.00023943,2]
[313833059,1707748270058,-1065.07,0.00023943,2]
[313833060,1707748270068,-500.0,0.00023943,2]
[313833061,1707748270077,-500.0,0.00023943,2]
[313833062,1707748270087,-596.16,0.00023943,2]
[313833063,1707748270098,-500.0,0.00023943,2]
[313833064,1707748270107,-706.62,0.00023943,2]
[313833065,1707748270118,-500.0,0.00023943,2]
[313833066,1707748270127,-4062.09,0.00023943,2]
[313833067,1707748270137,-1058.56,0.00023943,2]
[313833068,1707748270146,-500.0,0.00023943,2]
[313833069,1707748270156,-500.0,0.00023943,2]
[313833070,1707748270166,-721.91,0.00023943,2]
[313833071,1707748270175,-3863.5,0.00023943,2]
[313833072,1707748270184,-605.96,0.00023943,2]
[313833073,1707748270194,-500.0,0.00023943,2]
[313833074,1707748270203,-559.05,0.00023943,2]
[313833075,1707748270212,-500.0,0.00023943,2]
[313833076,1707748270221,-500.0,0.00023943,2]
[313833077,1707748270230,-214.61400111,0.00023943,2]
[313833078,1707748270240,-500.0,0.00023943,2]
[313833079,1707748270249,-5323.17,0.00023943,2]
[313833080,1707748270259,-500.0,0.00023943,2]
[313833081,1707748270268,-500.0,0.00023943,2]
[313833082,1707748270278,-500.0,0.00023943,2]
[313833083,1707748270288,-1797.81,0.00023943,2]
[313833084,1707748270299,-500.0,0.00023943,2]
[313833085,1707748270308,-500.0,0.00023943,2]
[313833086,1707748270318,-1838.78,0.00023943,2]
[313833087,1707748270327,-683.21,0.00023943,2]
[313833088,1707748270338,-500.0,0.00023943,2]
[313833089,1707748270348,-508.34,0.00023943,2]
[313833090,1707748270357,-500.0,0.00023943,2]
[313833091,1707748270368,-500.0,0.00023943,2]
[313833092,1707748270377,-945.99,0.00023943,2]
[313833093,1707748270387,-484.05175947,0.00023943,2]
[313833094,1707748270397,-500.0,0.00023943,2]
[313833095,1707748270407,-874.97,0.00023943,2]
[313833096,1707748270416,-500.0,0.00023943,2]
[313833097,1707748270426,-500.0,0.00023943,2]
[313833098,1707748270435,-416.12215892,0.00023943,2]
[313833099,1707748270445,-500.0,0.00023943,2]
[313833100,1707748270454,-2272.98,0.00023943,2]
[313833101,1707748270464,-500.0,0.00023943,2]
[313833102,1707748270474,-500.0,0.00023943,2]
[313833103,1707748270483,-1286.15,0.00023943,2]
[313833104,1707748270493,-500.0,0.00023943,2]
[313833105,1707748270504,-502.26,0.00023943,2]
[313833106,1707748270513,-1140.72,0.00023943,2]
[313833107,1707748270523,-500.0,0.00023944,2]
[313833108,1707748270532,-639.88,0.00023944,2]
[313833109,1707748270542,-500.0,0.00023944,2]
[313833110,1707748270552,-424.10608318,0.00023944,2]
[313833111,1707748270561,-500.0,0.00023944,2]
[313833112,1707748270571,-500.0,0.00023944,2]
[313833113,1707748270580,-500.0,0.00023944,2]
[313833114,1707748270589,-500.0,0.00023944,2]
[313833115,1707748270599,-500.0,0.00023944,2]
[313833116,1707748270608,-500.0,0.00023944,2]
[313833117,1707748270618,-500.0,0.00023944,2]
[313833118,1707748270628,-500.0,0.00023944,2]
[313833119,1707748270638,-500.0,0.00023944,2]
[313833120,1707748270647,-500.0,0.00023944,2]
[313833121,1707748270657,-564.02167658,0.00023944,2]
[313833122,1707748270666,-503.12144753,0.00023944,2]
[313833123,1707748270676,-500.0,0.00023944,2]
[313833124,1707748270686,-500.0,0.00023944,2]
[313833125,1707748270695,-508.46256366,0.00023944,2]
[313833126,1707748270705,-440.13455067,0.00023944,2]
[313833127,1707748270714,-500.0,0.00023944,2]
[313833128,1707748270723,-260.64601161,0.00023944,2]
[313833129,1707748270732,-500.0,0.00023944,2]
[313833130,1707748270742,-524.07,0.00023944,2]
[313833131,1707748270751,-500.0,0.00023944,2]
[313833132,1707748270761,-500.0,0.00023944,2]
[313833133,1707748270770,-251.17871332,0.00023944,2]
[313833134,1707748270779,-500.0,0.00023944,2]
[313833135,1707748270788,-500.0,0.00023944,2]
[313833136,1707748270797,-500.0,0.00023944,2]
[313833137,1707748270806,-500.0,0.00023944,2]
[313833138,1707748270815,-500.0,0.00023944,2]
[313833139,1707748270824,-500.0,0.00023944,2]
[313833140,1707748270834,-500.0,0.00023944,2]
[313833141,1707748270843,-500.0,0.00023944,2]
[313833142,1707748270852,-500.0,0.00023944,2]
[313833143,1707748270861,-500.0,0.00023944,2]
[313833144,1707748270870,-500.0,0.00023944,2]
[313833145,1707748270878,-500.0,0.00023944,2]
[313833146,1707748270890,-500.0,0.00023944,2]
[313833147,1707748270898,-516.32882368,0.00023944,2]
[313833148,1707748270907,-500.0,0.00023944,2]
[313833149,1707748270916,-381.82853718,0.00023944,2]
[313833150,1707748270925,-281.67041167,0.00023944,2]
[313833151,1707748270934,-500.0,0.00023944,2]
[313833152,1707748270943,-250.0,0.00023944,2]
[313833153,1707748270953,-169.85708503,0.00023944,2]
[313833154,1707748270962,-289.06890632,0.00023944,2]
[313833155,1707748270971,-500.0,0.00023944,2]
[313833156,1707748270981,-500.0,0.00023944,2]
[313833157,1707748270990,-859.17,0.00023944,2]
[313833158,1707748271000,-8642.09,0.00023944,2]
[313833159,1707748271009,-374.12529804,0.00023944,2]
[313833160,1707748271019,-500.0,0.00023944,2]
[313833161,1707748271028,-500.0,0.00023944,2]
[313833162,1707748271037,-500.0,0.00023944,2]
[313833163,1707748271047,-500.0,0.00023944,2]
[313833164,1707748271056,-907.74,0.00023944,2]
[313833165,1707748271065,-659.8,0.00023944,2]
[313833166,1707748271074,-190.4173392,0.00023944,2]
[313833167,1707748271084,-6204.93,0.00023944,2]
[313833168,1707748271093,-500.0,0.00023944,2]
[313833169,1707748271102,-500.0,0.00023944,2]
[313833170,1707748271112,-250.70608423,0.00023944,2]
[313833171,1707748271121,-1134.83,0.00023944,2]
[313833172,1707748271131,-500.0,0.00023944,2]
[313833173,1707748271140,-1147.71,0.00023944,2]
[313833174,1707748271150,-500.0,0.00023944,2]
[313833175,1707748271159,-500.0,0.00023944,2]
[313833176,1707748271168,-500.0,0.00023944,2]
[313833177,1707748271178,-2142.38,0.00023944,2]
[313833178,1707748271187,-1578.9,0.00023944,2]
[313833179,1707748271196,-500.0,0.00023944,2]
[313833180,1707748271206,-500.0,0.00023944,2]
[313833181,1707748271217,-500.0,0.00023944,2]
[313833182,1707748271226,-628.61,0.00023944,2]
[313833183,1707748271236,-1527.65,0.00023944,2]
[313833184,1707748271246,-500.0,0.00023944,2]
[313833185,1707748271256,-1715.49,0.00023944,2]
[313833186,1707748271266,-500.0,0.00023944,2]
[313833187,1707748271276,-1537.51,0.00023944,2]
[313833188,1707748271286,-500.0,0.00023944,2]
[313833189,1707748271296,-500.0,0.00023944,2]
[313833190,1707748271309,-1757.6,0.00023944,2]
[313833191,1707748271320,-500.0,0.00023944,2]
[313833192,1707748271330,-2089.11,0.00023944,2]
[313833193,1707748271340,-1017.68,0.00023944,2]
[313833194,1707748271349,-500.0,0.00023944,2]
[313833195,1707748271359,-1161.37,0.00023944,2]
[313833196,1707748271369,-480.43908298,0.00023944,2]
[313833197,1707748271379,-590.03,0.00023944,2]
[313833198,1707748271389,-500.0,0.00023944,2]
[313833199,1707748271398,-10286.15,0.00023944,2]
[313833200,1707748271408,-500.0,0.00023944,2]
[313833201,1707748271418,-500.0,0.00023944,2]
[313833202,1707748271428,-485.84175044,0.00023944,2]
[313833203,1707748271437,-500.0,0.00023944,2]
[313833204,1707748271447,-500.0,0.00023944,2]
[313833205,1707748271457,-1897.21,0.00023944,2]
[313833206,1707748271466,-500.0,0.00023944,2]